bitfinex/quotes_ETHUSD_20241203
["timestamp","ask_amount","ask_price","bid_price","bid_amount"]
[1733242435518,0.67672087,3585.9,3585.7,0.154874]
[1733242435806,0.26025927,3585.8,3585.7,0.154874]
[1733242436006,3.38402142,3585.8,3585.7,0.154874]
[1733242436203,3.80039757,3585.8,3585.7,0.154874]
[1733242436608,4.00851522,3585.8,3585.7,0.154874]
[1733242439688,4.00724294,3585.8,3585.7,0.154874]
[1733242440234,3.79912529,3585.8,3585.7,0.154874]
[1733242440516,4.00690137,3585.8,3585.7,0.154874]
[1733242440723,3.79912529,3585.8,3585.7,0.154874]
[1733242441120,4.00690067,3585.8,3585.7,0.154874]
[1733242441489,3.79912529,3585.8,3585.7,0.154874]
[1733242441689,4.00683266,3585.8,3585.7,0.154874]
[1733242441926,0.70267064,3585.8,3585.7,0.154874]
[1733242442224,0.28706255,3585.8,3585.7,0.154874]
[1733242443188,0.25975505,3585.8,3585.7,0.154874]
[1733242444100,0.55,3586.8,3585.7,0.154874]
[1733242444101,0.41560809,3586.3,3585.7,0.154874]
[1733242444433,2.78856,3586.1,3585.7,0.154874]
[1733242444727,3.04812384,3586.0,3585.7,0.154874]
[1733242445032,2.78877,3585.8,3585.7,0.154874]
[1733242445226,3.04825384,3585.8,3585.7,0.154874]
[1733242445586,3.07457715,3585.8,3585.7,0.154874]
[1733242446796,3.49018524,3585.8,3585.7,0.154874]
[1733242447003,4.36027148,3585.8,3585.7,0.154874]
[1733242447222,3.73709119,3585.8,3585.7,0.154874]
[1733242448591,3.73704094,3585.8,3585.7,0.154874]
[1733242448936,0.28575595,3585.8,3585.7,0.154874]
[1733242449289,0.02632331,3585.8,3585.7,0.154874]
[1733242449724,2.78856,3586.1,3585.7,0.154874]
[1733242449899,0.25946408,3586.0,3585.7,0.154874]
[1733242450090,0.41509223,3586.4,3585.7,0.154874]
[1733242450289,0.87987243,3586.3,3585.7,0.154874]
[1733242450522,0.25953921,3586.2,3585.7,0.154874]
[1733242450728,0.25953921,3586.1,3585.7,0.154874]
[1733242450934,2.78825,3586.5,3585.7,0.154874]
[1733242450935,0.41509223,3586.5,3585.7,0.154874]
[1733242451232,0.25953509,3586.4,3585.7,0.154874]
[1733242451388,0.25953509,3586.3,3585.7,3.2381114]
[1733242451593,0.25953509,3586.2,3585.7,0.4492614]
[1733242451819,0.41509223,3586.5,3585.7,0.4492614]
[1733242452025,0.25966174,3586.4,3585.7,0.4492614]
[1733242452240,0.25984567,3586.3,3585.7,0.4492614]
[1733242452395,0.25984567,3586.2,3585.7,0.4492614]
[1733242452730,0.25984567,3586.1,3585.7,0.4492614]
[1733242452936,0.02590814,3586.1,3585.7,0.4492614]
[1733242453229,0.26006273,3586.0,3585.7,0.154874]
[1733242453435,0.20787654,3586.7,3585.7,2.943714]
[1733242453731,0.67614646,3586.6,3586.0,2.78862]
[1733242454028,0.26005518,3586.5,3586.0,2.78862]
[1733242454236,0.26005518,3586.4,3586.0,3.2426094]
[1733242454541,0.02630717,3586.4,3586.0,0.4539894]
[1733242454752,0.02630717,3586.4,3586.1,2.7885]
[1733242454894,0.02630717,3586.4,3586.1,2.78854]
[1733242455246,0.62417914,3587.0,3586.2,2.78846]
[1733242455538,0.88451865,3586.9,3586.3,2.78837]
[1733242455715,0.67664211,3586.9,3586.4,2.78828]
[1733242456032,0.67664211,3586.9,3586.3,0.278837]
[1733242456033,0.20787654,3587.1,3586.5,1.5273]
[1733242456232,0.88538211,3587.0,3586.3,0.278837]
[1733242456389,0.88538211,3587.0,3586.2,1.5501]
[1733242456390,0.67705935,3586.9,3586.2,1.5501]
[1733242456592,0.2603993,3586.8,3586.2,1.5501]
[1733242456796,0.2603993,3586.7,3586.2,1.5501]
[1733242457024,0.26043603,3586.6,3585.8,1.6259]
[1733242457294,2.78728,3587.8,3585.8,1.6259]
[1733242457295,0.26043603,3586.5,3585.8,1.6259]
[1733242457509,0.20833964,3586.8,3585.7,0.154874]
[1733242457510,0.26043603,3586.4,3585.7,0.154874]
[1733242457794,2.78848,3586.2,3585.7,0.154874]
[1733242458017,0.26043603,3586.1,3585.7,0.154874]
[1733242458213,2.55119293,3586.9,3585.7,0.154874]
[1733242458214,3.04907603,3586.0,3585.7,0.154874]
[1733242458435,2.78861,3586.1,3585.7,0.154874]
[1733242458733,3.0493424,3586.0,3585.7,0.154874]
[1733242458906,0.41715102,3586.3,3585.7,0.154874]
[1733242459236,2.78866,3586.0,3585.7,0.154874]
[1733242459390,0.260722,3585.9,3585.7,0.154874]
[1733242459598,3.049492,3585.8,3585.7,0.154874]
[1733242459924,0.260722,3585.8,3585.7,0.154874]
[1733242460416,2.78877,3585.8,3585.7,0.154874]
[1733242460633,3.04956305,3585.8,3585.7,0.154874]
[1733242460803,0.26079305,3585.8,3585.7,0.154874]
[1733242461213,0.41726845,3586.2,3585.7,0.154874]
[1733242461450,2.78843,3586.3,3585.7,0.154874]
[1733242461451,2.78875,3585.9,3585.7,0.154874]
[1733242463413,0.32056984,3586.1,3585.7,0.154874]
[1733242463414,3.10912984,3586.1,3585.7,0.154874]
[1733242463614,3.04949199,3586.0,3585.7,0.154874]
[1733242463962,0.26080658,3585.9,3585.7,0.154874]
[1733242464115,3.04959553,3585.8,3585.7,0.154874]
[1733242464316,4.49999953,3585.8,3585.7,0.154874]
[1733242464660,4.91735858,3585.8,3585.7,0.154874]
[1733242465549,3.94999953,3585.8,3585.7,0.154874]
[1733242465719,4.91735858,3585.8,3585.7,0.154874]
[1733242465911,4.91739918,3585.8,3585.7,0.154874]
[1733242466116,3.25829767,3585.8,3585.7,0.154874]
[1733242466358,3.04961871,3585.8,3585.7,0.154874]
[1733242466558,0.26084871,3585.8,3585.7,0.154874]
[1733242466731,3.04961871,3585.8,3585.7,0.154874]
[1733242467065,3.59961871,3585.8,3585.7,0.154874]
[1733242467265,4.93821841,3585.8,3585.7,0.154874]
[1733242467415,4.93825434,3585.8,3585.7,0.154874]
[1733242469120,4.38825434,3585.8,3585.7,0.154874]
[1733242469417,4.38833207,3585.8,3585.7,0.154874]
[1733242471966,3.71006112,3585.8,3585.7,0.154874]
[1733242472147,4.38827484,3585.8,3585.7,0.154874]
[1733242472879,3.50137998,3585.8,3585.7,0.154874]
[1733242473019,4.38829201,3585.8,3585.7,0.154874]
[1733242476444,4.93808281,3585.8,3585.7,0.154874]
[1733242483276,4.93808281,3585.8,3585.7,4e-06]
[1733242483277,4.93781414,3585.8,3585.7,4e-06]
[1733242483485,9.09073197,3585.8,3585.7,4e-06]
[1733242483997,7.93781414,3585.8,3585.0,5.0]
[1733242484153,3.33932,3585.1,3585.0,5.0]
[1733242484354,3.60003593,3585.1,3585.0,5.0]
[1733242484593,3.80863262,3585.1,3585.0,5.0]
[1733242485067,3.60003593,3585.1,3585.0,5.0]
[1733242485270,3.80866007,3585.1,3585.0,5.0]
[1733242485800,4.22580556,3585.1,3585.0,5.0]
[1733242485995,4.76530233,3585.1,3585.0,5.0]
[1733242486159,4.7653961,3585.1,3585.0,5.0]
[1733242486786,4.76538454,3585.1,3585.0,5.0]
[1733242486974,4.55667819,3585.1,3585.0,5.0]
[1733242487371,4.76547483,3585.1,3585.0,5.0]
[1733242487563,4.7654781,3585.1,3585.0,5.0]
[1733242487979,5.18307748,3585.1,3585.0,5.0]
[1733242488808,3.77333283,3585.7,3585.0,5.0]
[1733242488809,2.78899,3585.6,3585.0,6.5071]
[1733242489010,0.88747457,3585.1,3585.0,6.5071]
[1733242489303,0.26102171,3585.1,3585.0,6.5071]
[1733242489509,4.1688385,3586.0,3585.0,6.5071]
[1733242489510,0.62645286,3585.5,3585.0,6.5071]
[1733242489688,4.8573027,3586.5,3585.0,6.5071]
[1733242489689,0.46982836,3585.4,3585.0,6.5071]
[1733242489859,0.26101023,3585.3,3585.0,7.436767]
[1733242490060,0.20879128,3585.6,3585.1,1.6257]
[1733242490308,0.26099509,3585.5,3585.4,4.41478]
[1733242490508,2.78837,3586.4,3585.5,1.6257]
[1733242490804,0.88738043,3586.3,3585.5,1.6257]
[1733242490961,4.8573027,3587.1,3585.7,1.6257]
[1733242490962,0.88738043,3586.2,3585.7,1.6257]
[1733242491160,0.62616974,3587.0,3585.9,2.55146704]
[1733242491375,1.72937674,3587.7,3585.9,2.55146704]
[1733242491376,0.8870385,3586.9,3586.4,1.6257]
[1733242491581,0.8870385,3586.8,3586.4,4.414]
[1733242491833,0.26086876,3586.7,3586.4,1.6257]
[1733242492107,0.26086876,3586.6,3586.4,1.6257]
[1733242492268,2.78753,3587.4,3586.4,1.6257]
[1733242492269,0.62606534,3587.2,3586.4,2.06711]
[1733242492464,0.8868026,3587.1,3586.4,1.6257]
[1733242492727,2.78818,3586.6,3585.6,1.5799]
[1733242492904,0.46942659,3586.5,3585.6,1.5799]
[1733242493089,0.46942659,3586.4,3585.6,1.5799]
[1733242493378,3.25781659,3586.3,3585.6,1.5799]
[1733242493593,0.46942659,3586.2,3585.6,1.5799]
[1733242493912,0.81073726,3586.1,3585.6,1.5799]
[1733242494065,0.55,3585.9,3585.6,1.5799]
[1733242494609,0.55,3586.2,3585.6,1.5799]
[1733242494820,0.55,3586.1,3585.6,1.5799]
[1733242495172,0.55,3586.4,3585.6,1.5799]
[1733242495508,0.55,3586.2,3585.6,2.01679]
[1733242495714,0.26074612,3586.1,3585.6,2.01679]
[1733242496013,2.78788,3587.0,3585.6,2.01679]
[1733242496014,0.55,3586.0,3585.6,2.01679]
[1733242496217,0.55,3586.2,3585.6,2.01679]
[1733242496567,0.55,3586.5,3585.6,2.01679]
[1733242496907,0.55,3586.3,3585.6,2.01679]
[1733242497317,0.55,3586.1,3585.6,2.01679]
[1733242497619,0.55,3586.3,3585.6,2.01679]
[1733242497966,0.55,3586.4,3585.6,2.01679]
[1733242498171,0.26062996,3586.3,3585.6,1.5799]
[1733242498502,0.26062996,3586.2,3585.6,1.5799]
[1733242498670,0.55,3586.2,3585.6,1.5799]
[1733242499087,0.26061943,3586.1,3585.6,1.5799]
[1733242499290,0.55,3586.2,3585.6,1.5799]
[1733242499694,0.26061889,3586.1,3585.6,1.5799]
[1733242500016,0.55,3586.4,3585.6,1.5799]
[1733242500017,0.55,3586.2,3585.6,1.5799]
[1733242500392,0.2606037,3586.1,3585.6,4.36882]
[1733242500636,0.2606037,3586.4,3585.6,4.805702]
[1733242500792,0.55,3586.3,3585.6,4.36882]
[1733242500992,0.55,3586.4,3585.6,1.5799]
[1733242501450,0.75846293,3586.4,3585.6,1.5799]
[1733242501622,0.55,3586.2,3585.6,1.5799]
[1733242501994,0.75846293,3586.3,3585.6,1.5799]
[1733242502199,0.55,3586.1,3585.6,1.5799]
[1733242502512,1.1688385,3587.1,3585.6,1.5799]
[1733242502513,2.33507866,3587.6,3587.5,8.2207591]
[1733242502840,2.91758369,3588.7,3588.6,2.7866]
[1733242503009,2.91758369,3589.3,3588.5,4.20266704]
[1733242503195,0.57035137,3589.2,3588.5,4.20266704]
[1733242503394,2.91758369,3589.8,3588.5,1.6512]
[1733242503596,2.55146704,3589.7,3588.5,1.6512]
[1733242503842,2.78619,3589.2,3588.5,1.6512]
[1733242504149,2.78601,3589.4,3588.5,1.6512]
[1733242504509,2.91758369,3589.8,3588.5,1.6512]
[1733242504740,1.5226,3590.0,3588.5,1.6512]
[1733242504741,2.78607,3589.3,3588.5,1.6512]
[1733242505252,2.78615,3589.2,3588.5,1.6512]
[1733242505398,0.55,3589.2,3588.5,1.6512]
[1733242505956,3.55,3589.5,3588.5,1.6512]
[1733242506229,2.78599,3589.4,3588.5,1.6512]
[1733242506436,0.883599,3589.3,3588.5,1.6512]
[1733242506638,0.55,3589.3,3588.5,1.6512]
[1733242506809,0.55,3589.6,3588.5,1.6512]
[1733242507019,2.78591,3589.5,3588.5,1.6512]
[1733242507345,0.55,3589.4,3588.5,1.6512]
[1733242508234,0.55,3589.6,3588.6,0.02786443]
[1733242508442,1.22797784,3589.6,3588.6,2.78657]
[1733242508600,1.22797784,3589.6,3588.7,2.78651]
[1733242508937,1.22797784,3589.6,3588.2,5.33832704]
[1733242508938,1.6574,3590.5,3589.0,1.5543]
[1733242509148,2.78535,3590.3,3589.1,2.7862]
[1733242509443,2.78534,3590.3,3589.2,2.78611]
[1733242509744,2.78534,3590.3,3589.2,2.81396889]
[1733242510342,2.78534,3590.3,3589.2,2.78611]
[1733242510637,0.278534,3590.2,3589.1,2.7862]
[1733242510842,0.278534,3590.2,3589.4,2.78595]
[1733242511004,1.6574,3590.9,3589.3,1.5698]
[1733242511333,2.78519,3590.5,3589.3,4.35585]
[1733242511552,3.0,3590.7,3589.3,4.35578]
[1733242511957,2.78506,3590.6,3589.4,2.78595]
[1733242512539,2.78513,3590.5,3589.4,2.78595]
[1733242512741,0.55,3590.4,3589.4,2.78595]
[1733242513160,0.55,3590.4,3589.3,1.5698]
[1733242513529,3.33525,3590.4,3589.3,1.5698]
[1733242513867,6.20509711,3590.8,3589.4,2.78591]
[1733242513868,0.55,3590.5,3589.4,2.78591]
[1733242514023,0.588506,3590.4,3589.4,2.78591]
[1733242514346,0.55,3590.5,3589.3,1.5698]
[1733242514347,2.78514,3590.5,3589.3,1.5698]
[1733242514647,2.78521,3590.4,3589.3,1.5698]
[1733242514860,0.42020711,3590.8,3589.3,1.5698]
[1733242514861,2.78497,3590.7,3589.3,1.5698]
[1733242515150,2.7852,3590.5,3589.5,1.5272]
[1733242515477,0.42020711,3590.8,3589.5,1.5272]
[1733242515754,2.54467113,3589.8,3588.3,2.78679]
[1733242515906,0.55,3589.7,3588.1,1.6267]
[1733242516112,2.78614,3589.2,3588.1,1.6267]
[1733242516346,0.55,3589.4,3588.1,1.6267]
[1733242516723,0.55,3588.9,3588.1,1.6267]
[1733242516909,2.78656,3588.7,3588.1,1.6267]
[1733242517115,0.51557115,3588.8,3588.1,1.6267]
[1733242517457,0.51557115,3588.8,3588.2,0.0278684]
[1733242517753,3.55,3589.3,3588.1,1.6267]
[1733242518054,6.33608,3589.3,3588.1,1.6267]
[1733242518258,2.78647,3588.8,3588.1,1.6267]
[1733242518549,2.78647,3588.8,3587.4,2.54661148]
[1733242518550,0.55,3588.8,3587.7,1.6185]
[1733242518719,2.78661,3588.6,3587.7,1.6185]
[1733242520451,0.278661,3588.6,3587.7,1.6185]
[1733242520661,2.78678,3588.4,3587.7,1.6185]
[1733242520838,0.55,3588.9,3587.7,1.6185]
[1733242521040,2.78687,3588.3,3587.7,1.6185]
[1733242521353,2.78696,3588.2,3587.7,1.6185]
[1733242521662,2.787,3588.1,3587.7,1.6185]
[1733242521812,3.0657,3588.1,3587.7,1.6185]
[1733242522349,2.78684,3588.3,3587.7,1.6185]
[1733242522570,3.55,3588.6,3587.7,1.6185]
[1733242522728,2.78701,3588.1,3587.7,1.6185]
[1733242523253,2.78711,3588.0,3587.7,1.6185]
[1733242523457,3.55,3588.6,3587.7,1.6185]
[1733242523756,2.78698,3588.2,3587.7,1.6185]
[1733242523925,0.55,3588.4,3587.7,1.6185]
[1733242524128,2.78709,3588.0,3587.7,1.6185]
[1733242524330,4.10941148,3588.3,3587.0,1.656]
[1733242524545,3.55,3588.2,3587.0,1.656]
[1733242524856,2.78747,3587.5,3587.0,1.656]
[1733242525038,2.78764,3587.3,3587.0,1.656]
[1733242525554,2.78747,3587.5,3587.0,1.656]
[1733242527555,0.55,3587.8,3586.5,1.653]
[1733242527728,0.55,3587.4,3586.5,1.653]
[1733242527916,0.55,3586.9,3586.5,1.653]
[1733242528117,2.78808,3586.7,3586.5,1.653]
[1733242528433,0.55,3586.9,3585.6,2.9469]
[1733242528434,2.78826,3586.5,3586.1,1.6328]
[1733242528965,5.33483148,3586.6,3586.1,1.6328]
[1733242529131,2.78826,3586.5,3586.1,1.6328]
[1733242529535,2.54661148,3586.6,3586.1,1.6328]
[1733242529744,2.78823,3586.5,3586.1,1.6328]
[1733242530152,5.33476148,3586.6,3586.1,1.6328]
[1733242530721,2.54661148,3586.6,3586.1,1.6328]
[1733242531050,2.78826,3586.5,3586.1,1.6328]
[1733242531248,2.54661148,3586.6,3586.1,1.6328]
[1733242531437,5.33478148,3586.6,3586.1,1.6328]
[1733242531641,2.78817,3586.6,3586.1,1.6328]
[1733242532160,2.78825,3586.5,3586.1,1.6328]
[1733242532669,2.78832,3586.4,3586.1,1.6328]
[1733242532839,2.78846,3586.2,3585.4,1.6652]
[1733242533043,2.78864,3586.0,3585.4,1.6652]
[1733242533230,0.55,3586.2,3585.4,1.6652]
[1733242533424,3.33847,3586.2,3585.4,1.6652]
[1733242533859,1.20666715,3586.2,3585.4,1.6652]
[1733242536454,3.333817,3586.6,3585.4,1.6652]
[1733242536679,0.55,3586.5,3585.5,2.78894]
[1733242536851,0.55,3586.5,3585.4,1.6652]
[1733242537570,3.33831,3586.5,3585.4,1.6652]
[1733242537776,3.333817,3586.6,3585.4,1.6652]
[1733242537777,3.22820152,3585.9,3585.4,1.6652]
[1733242537980,0.92782015,3585.8,3585.0,6.5833]
[1733242539196,2.78887,3585.7,3585.0,6.5833]
[1733242539492,0.92782015,3585.8,3585.0,6.5833]
[1733242539493,3.22820152,3585.5,3585.0,5.0]
[1733242540863,3.92782015,3585.8,3585.0,5.0]
[1733242541263,6.71660015,3585.8,3585.0,5.0]
[1733242541451,0.55,3585.6,3585.0,5.0]
[1733242543109,3.33885,3585.7,3585.0,5.0]
[1733242543258,0.55,3585.4,3585.0,5.0]
[1733242543894,3.22820152,3585.1,3585.0,5.0]
[1733242544251,5.31680152,3585.1,3585.0,5.0]
[1733242544519,6.12740567,3585.1,3585.0,5.0]
[1733242544684,8.91672567,3585.1,3585.0,5.0]
[1733242545076,11.91672567,3585.1,3585.0,4.42362528]
[1733242545299,12.12401434,3585.1,3585.0,4.42362528]
[1733242545981,11.91672567,3585.1,3585.0,4.42362528]
[1733242546174,12.12401643,3585.1,3585.0,2.09581682]
[1733242546415,0.55,3584.1,3582.4,1.634]
[1733242546576,0.55,3583.9,3582.5,1.6577]
[1733242546777,3.22820152,3584.0,3583.1,4.44856]
[1733242547010,3.22820152,3584.0,3583.1,1.6577]
[1733242547315,3.197819,3584.0,3583.1,1.6577]
[1733242547512,4.0074859,3584.0,3583.1,1.6577]
[1733242547879,3.22820152,3583.2,3582.7,1.544]
[1733242548103,3.22820152,3583.2,3582.2,1.698874]
[1733242548285,3.22820152,3582.8,3582.2,1.698874]
[1733242548487,0.55,3583.1,3582.2,1.698874]
[1733242548686,0.92782015,3583.1,3582.2,1.698874]
[1733242549018,0.92782015,3583.1,3582.2,4.490434]
[1733242549238,3.22820152,3583.2,3582.3,2.79148]
[1733242549378,3.22820152,3583.2,3582.2,1.698874]
[1733242549700,1.6327,3583.5,3582.5,2.79134]
[1733242549893,4.6327,3583.5,3582.5,2.79134]
[1733242550092,5.71879015,3583.5,3582.5,2.79134]
[1733242550603,2.71879015,3583.5,3582.6,2.79124]
[1733242550777,1.6327,3583.5,3582.4,2.79142]
[1733242551113,1.6327,3583.5,3582.3,2.79149]
[1733242551477,1.6327,3583.5,3582.2,1.698874]
[1733242551478,0.55,3583.4,3582.2,1.698874]
[1733242551672,3.22820152,3583.2,3582.2,1.698874]
[1733242554281,3.23514754,3583.2,3582.2,1.698874]
[1733242554482,0.60258575,3583.1,3582.2,1.698874]
[1733242554984,0.60258575,3583.1,3582.2,0.154874]
[1733242555572,2.55586039,3582.8,3582.2,0.154874]
[1733242557548,0.60258575,3583.1,3582.2,0.154874]
[1733242557549,2.55586039,3583.2,3582.2,0.154874]
[1733242557854,1.6327,3583.5,3582.5,2.79133]
[1733242558038,1.6327,3583.5,3582.3,1.67051225]
[1733242558039,1.6327,3583.5,3582.3,4.43409]
[1733242558245,2.55586039,3583.2,3582.3,1.6426]
[1733242558727,2.55586039,3582.8,3582.2,0.154874]
[1733242559284,1.579,3582.7,3582.2,0.154874]
[1733242559441,1.579,3583.1,3582.2,0.154874]
[1733242560341,1.579,3583.1,3582.2,2.946434]
[1733242560550,1.579,3583.1,3582.2,0.154874]
[1733242560714,0.69256104,3583.0,3582.2,0.154874]
[1733242561229,1.5743,3583.5,3582.6,2.79122]
[1733242561552,2.55586039,3583.6,3582.6,2.79119]
[1733242561856,2.55586039,3583.6,3582.7,2.79114]
[1733242562061,4.12871905,3583.8,3583.0,2.79095]
[1733242562875,4.12871905,3583.8,3582.9,2.79103]
[1733242563035,4.15131905,3584.2,3582.9,0.432553]
[1733242563240,0.2074026,3584.1,3583.4,1.5806]
[1733242563422,1.5969,3584.6,3583.4,1.5806]
[1733242563622,1.8308987,3584.9,3583.8,2.79026]
[1733242563962,1.8308987,3584.9,3583.4,1.5806]
[1733242563963,0.2073987,3584.8,3583.4,1.5806]
[1733242564115,0.2073987,3584.7,3584.0,2.79013]
[1733242564316,0.2073987,3584.8,3584.1,4.3864]
[1733242564518,0.2073987,3584.8,3584.1,1.5963]
[1733242564758,3.23169222,3584.7,3583.8,1.5963]
[1733242564917,0.20746889,3584.6,3583.8,1.5963]
[1733242565125,1.6235,3584.9,3583.8,1.5963]
[1733242565366,0.20756353,3584.8,3583.8,1.5963]
[1733242565661,2.10901922,3584.9,3583.8,1.5963]
[1733242565662,0.20756353,3584.7,3583.8,1.5963]
[1733242565959,0.20756353,3584.8,3583.8,1.5963]
[1733242566257,0.20756353,3584.7,3583.8,1.5963]
[1733242566559,3.23169222,3584.3,3583.3,1.5102]
[1733242566766,0.53087072,3584.2,3583.3,1.5102]
[1733242567272,2.9978015,3584.1,3583.3,1.5102]
[1733242567557,0.32316922,3584.2,3583.3,1.5102]
[1733242567558,0.2077015,3584.0,3583.3,1.5102]
[1733242567741,0.32316922,3584.2,3583.3,1.5102]
[1733242567937,0.2078468,3584.1,3583.3,1.5102]
[1733242568148,0.32316922,3584.2,3583.3,1.5102]
[1733242568330,0.20793174,3584.1,3583.4,0.0279048]
[1733242568552,0.20792076,3584.6,3583.5,1.5563]
[1733242568735,0.20792076,3584.5,3583.6,2.79048]
[1733242569054,2.78963,3584.7,3583.5,1.5563]
[1733242569255,0.207907,3584.6,3583.5,1.5563]
[1733242569443,0.55186692,3584.5,3583.5,1.5563]
[1733242569733,0.20800384,3584.4,3583.5,1.5563]
[1733242569961,3.13376992,3584.5,3583.5,1.5563]
[1733242569962,0.20800384,3584.3,3583.5,1.5563]
[1733242570162,0.20800384,3584.4,3583.5,1.5563]
[1733242570376,0.20808234,3584.3,3583.5,1.5563]
[1733242570582,0.34395992,3584.5,3583.5,4.34686]
[1733242570731,0.20807648,3584.4,3583.5,4.34686]
[1733242570942,0.34395992,3584.5,3583.5,4.34686]
[1733242571168,0.20807944,3584.4,3583.5,1.5563]
[1733242571467,0.20817148,3584.3,3583.6,2.79044]
[1733242571783,3.23169222,3584.7,3583.5,4.781534]
[1733242571931,2.78979,3584.5,3583.5,1.5563]
[1733242572125,0.20817453,3584.4,3583.5,1.5563]
[1733242572452,0.20817453,3584.3,3583.5,1.5563]
[1733242572652,0.20817453,3584.2,3583.5,1.5563]
[1733242572823,2.78993,3584.4,3583.5,1.5563]
[1733242573027,1.6632,3584.6,3583.5,1.5563]
[1733242573028,0.65359468,3584.3,3583.5,1.5563]
[1733242573349,1.6632,3584.6,3583.5,1.5563]
[1733242573350,0.20828168,3584.2,3583.5,1.5563]
[1733242573541,4.45298,3584.6,3583.5,1.5563]
[1733242573868,0.20841458,3584.5,3583.5,1.5563]
[1733242574172,0.20841458,3584.4,3583.5,4.34684]
[1733242574403,1.6632,3584.6,3583.5,4.34684]
[1733242574404,0.20841458,3584.3,3583.5,4.34684]
[1733242574699,0.20841458,3584.2,3583.5,1.5563]
[1733242574844,0.20841458,3584.1,3583.5,1.5563]
[1733242575193,4.81379222,3583.9,3582.9,1.519]
[1733242575396,4.81379222,3583.9,3582.4,1.519]
[1733242575397,2.79074,3583.3,3582.4,1.519]
[1733242575559,4.3062,3583.2,3582.4,1.519]
[1733242575890,2.79089,3583.1,3582.0,4.33832]
[1733242576037,1.5154,3583.2,3582.0,1.5466]
[1733242576237,2.79104,3582.9,3582.0,1.5466]
[1733242576491,2.79104,3582.9,3581.7,4.36314]
[1733242576780,0.20858304,3582.8,3581.7,4.36314]
[1733242576944,2.79113,3582.8,3581.7,1.5712]
[1733242577685,2.79114,3582.8,3581.7,1.5712]
[1733242577886,0.20853491,3582.7,3581.7,1.5712]
[1733242578140,0.29996749,3582.6,3581.7,1.5712]
[1733242578302,1.6367,3582.5,3581.7,1.5712]
[1733242579774,1.6367,3582.5,3581.7,4.36314]
[1733242580559,1.6367,3582.5,3581.7,1.5712]
[1733242581910,1.6367,3582.5,3581.0,2.79247]
[1733242581911,6.02319222,3582.3,3581.0,4.3628]
[1733242582110,6.23165608,3582.3,3581.0,4.3628]
[1733242582318,6.23165608,3582.3,3581.0,1.5703]
[1733242582468,7.73505608,3582.3,3581.0,1.5703]
[1733242582673,8.81768944,3582.3,3581.0,1.5703]
[1733242582981,8.81759065,3582.3,3581.0,1.5703]
[1733242583521,11.81759065,3582.3,3580.7,1.5703]
[1733242583812,12.36759065,3582.3,3580.7,1.5703]
[1733242584161,12.36759065,3582.3,3580.0,55.0]
[1733242584369,12.36759065,3582.3,3580.4,4.36328]
[1733242584875,12.36759065,3582.3,3580.4,1.5703]
[1733242585366,2.79227,3581.4,3580.4,1.5703]
[1733242585573,1.6256,3581.3,3580.4,1.5703]
[1733242586007,0.279227,3581.4,3580.0,55.0]
[1733242586008,1.5275,3580.7,3580.0,55.0]
[1733242586796,4.5275,3580.7,3580.0,55.0]
[1733242587119,3.00060344,3580.6,3580.0,55.0]
[1733242587267,3.23169222,3580.4,3580.0,55.0]
[1733242587698,0.60246322,3580.3,3580.0,55.0]
[1733242587968,2.79321,3580.1,3580.0,55.0]
[1733242589264,5.79321,3580.1,3580.0,55.0]
[1733242590311,7.34991,3580.1,3580.0,55.0]
[1733242590890,1.5567,3580.1,3580.0,55.0]
[1733242591070,1.5631,3580.5,3580.0,55.0]
[1733242593021,4.35602,3580.5,3580.0,55.0]
[1733242593177,1.5631,3580.5,3580.0,55.0]
[1733242593579,2.79302,3580.4,3580.0,55.0]
[1733242593818,3.23169222,3580.4,3580.0,55.0]
[1733242594115,2.79307,3580.3,3580.0,55.0]
[1733242594318,3.23169222,3580.4,3580.0,55.0]
[1733242595018,1.5631,3580.5,3580.0,55.0]
[1733242597032,3.0,3580.7,3580.0,55.0]
[1733242597595,5.55902994,3580.7,3580.0,55.0]
[1733242597831,5.55902994,3580.7,3580.1,2.79319]
[1733242598044,2.55902994,3580.7,3580.0,55.0]
[1733242598235,2.55902994,3581.1,3580.1,2.79321]
[1733242598408,2.55902994,3581.1,3580.0,57.79327]
[1733242598609,2.55902994,3581.1,3580.1,2.7932]
[1733242598806,1.6234,3581.2,3580.0,55.0]
[1733242598807,2.55902994,3580.7,3580.0,55.0]
[1733242599008,2.55902994,3580.3,3580.0,55.0]
[1733242603202,2.97345293,3580.3,3580.0,55.0]
[1733242604205,2.55902994,3580.7,3580.0,55.0]
[1733242604433,2.55902994,3580.7,3580.2,2.79313]
[1733242604635,0.20737293,3581.0,3580.3,2.79306]
[1733242605043,0.20737293,3581.0,3580.1,4.44635]
[1733242605551,0.20737293,3581.0,3580.2,2.79313]
[1733242605900,0.20737293,3581.0,3580.0,55.0]
[1733242605901,2.55902994,3580.7,3580.0,55.0]
[1733242606136,5.55917287,3580.7,3580.0,55.0]
[1733242606353,5.35179994,3580.7,3580.0,55.0]
[1733242606536,3.00059317,3580.6,3580.0,55.0]
[1733242606850,2.55902994,3580.3,3580.0,55.0]
[1733242607003,0.41452299,3580.2,3580.0,55.0]
[1733242607455,3.20766299,3580.2,3580.0,55.0]
[1733242607630,2.79321,3580.1,3580.0,55.0]
[1733242608284,3.00109829,3580.1,3580.0,55.0]
[1733242608580,0.20788829,3580.1,3580.0,55.0]
[1733242609751,2.79321,3580.1,3580.0,55.0]
[1733242609907,3.36988629,3580.1,3580.0,55.0]
[1733242610404,3.57802998,3580.1,3580.0,55.0]
[1733242610633,5.02578629,3580.1,3580.0,55.0]
[1733242610931,5.02578629,3580.1,3580.0,54.83633259]
[1733242610932,8.7841188,3580.1,3580.0,54.83633259]
[1733242611134,11.34314874,3580.1,3580.0,41.20910451]